Workbook

Sheet （预表1）财政拨款收支总表
H1: 预算表1
A2: 2016年财政拨款收支总表
A3: 单位名称：东莞理工学院 | H3: 单位：万元
A4: 收 入 | D4: 支 出
A5: 项 目 | B5: 行次 | C5: 年初预算数 | D5: 项目（按功能分类） | E5: 行次 | F5: 合计 | G5: 一般公共预算财政拨款 | H5: 政府性基金预算财政拨款
A7: 栏 次 | C7: 1 | D7: 栏 次 | F7: 2 | G7: 3 | H7: 4
A8: 一、一般公共预算财政拨款 | B8: 1 | C8: 75,128.26 | D8: 一、一般公共服务支出 | E8: 36 | F8: 10.00 | G8: 10.00
A9: 二、政府性基金预算财政拨款 | B9: 2 | D9: 二、外交支出 | E9: 37
B10: 3 | D10: 三、国防支出 | E10: 38
B11: 4 | D11: 四、公共安全支出 | E11: 39
B12: 5 | D12: 五、教育支出 | E12: 40 | F12: 102,526.90 | G12: 102,526.90
B13: 6 | D13: 六、科学技术支出 | E13: 41 | F13: 1,930.65 | G13: 1,930.65
B14: 7 | D14: 七、文化体育与传媒支出 | E14: 42 | F14: 20.00 | G14: 20.00
B15: 8 | D15: 八、社会保障和就业支出 | E15: 43
B16: 9 | D16: 九、医疗卫生与计划生育支出 | E16: 44
B17: 10 | D17: 十、节能环保支出 | E17: 45 | F17: 10.51 | G17: 10.51
B18: 11 | D18: 十一、城乡社区支出 | E18: 46
B19: 12 | D19: 十二、农林水支出 | E19: 47
B20: 13 | D20: 十三、交通运输支出 | E20: 48
B21: 14 | D21: 十四、资源勘探信息等支出 | E21: 49
B22: 15 | D22: 十五、商业服务业等支出 | E22: 50
B23: 16 | D23: 十六、金融支出 | E23: 51
B24: 17 | D24: 十七、援助其他地区支出 | E24: 52
B25: 18 | D25: 十八、国土海洋气象等支出 | E25: 53
B26: 19 | D26: 十九、住房保障支出 | E26: 54 | F26: 808.27 | G26: 808.27
B27: 20 | D27: 二十、粮油物资储备支出 | E27: 55
B28: 21 | D28: 二十一、预备费 | E28: 56
B29: 22 | D29: 二十二、其他支出 | E29: 57
B30: 23 | D30: 二十三、转移性支出 | E30: 58
B31: 24 | D31: 二十一、债务还本支出 | E31: 59
B32: 25 | D32: 二十三、债务付息支出 | E32: 60
B33: 26 | D33: 二十四、债务发行费用支出 | E33: 61
B34: 27 | D34: 二十二、其他支出 | E34: 62
B35: 28 | E35: 63
A36: 本年收入合计 | B36: 29 | C36: =C8+C9 -> 75,128.26 | D36: 本年支出合计 | E36: 64 | F36: =SUM(F8:F34) -> 105,306.33 | G36: =SUM(G8:G34) -> 105,306.33
B37: 30 | E37: 65
A38: 年初财政拨款结转结余 | B38: 31 | C38: 30,178.07 | D38: 年末财政拨款结转结余 | E38: 66
A39: 一、一般公共预算财政拨款 | B39: 32 | C39: 30,178.07 | E39: 67
A40: 二、政府性基金预算财政拨款 | B40: 33 | E40: 68
B41: 34 | E41: 69
A42: 收入总计 | B42: 35 | C42: =C8+C9+C39+C40 -> 105,306.33 | D42: 支出总计 | E42: 70 | F42: =SUM(F36:F38) -> 105,306.33 | G42: =SUM(G36:G38) -> 105,306.33

Sheet （预表2）一般公共预算支出表
G1: 预算表2
A2: 2016年一般公共预算支出表
A3: 单位名称：东莞理工学院 | G3: 单位：万元
A4: 项目 | E4: 年初预算数
A5: 支出功能分类科目编码 | D5: 科目名称 | E5: 合计 | F5: 基本支出 | G5: 项目支出
A8: 类 | B8: 款 | C8: 项 | D8: 栏次 | E8: 1 | F8: 2 | G8: 3
D9: 合计 | E9: =E10+E13+E16+E29+E32+E35 -> 75,128.26 | F9: =F10+F13+F16+F29+F32+F35 -> 25,587.29 | G9: 49,540.97
A10: 201 | D10: 一般公共服务支出 | E10: 10.00 | G10: 10.00
A11: 20114 | D11: 知识产权事务 | E11: 10.00 | G11: 10.00
A12: 2011409 | D12: 知识产权宏观管理 | E12: 10.00 | G12: 10.00
A13: 205 | D13: 教育支出 | E13: 72,453.36 | F13: 24,779.02 | G13: =E13-F13 -> 47,674.34
A14: 20502 | D14: 普通教育 | E14: 72,453.36 | F14: 24,779.02 | G14: =E14-F14 -> 47,674.34
A15: 2050205 | D15: 高等教育 | E15: 72,453.36 | F15: 24,779.02 | G15: 47,674.34
A16: 206 | D16: 科学技术支出 | E16: 1,826.12 | G16: 1,826.12
A17: 20602 | D17: 基础研究 | E17: 325.83 | G17: 325.83
A18: 2060203 | D18: 自然科学基金 | E18: 325.83 | G18: 325.83
A19: 20603 | D19: 应用研究 | E19: 357.82 | G19: 357.82
A20: 2060302 | D20: 社会公益研究 | E20: 329.04 | G20: 329.04
A21: 2060303 | D21: 高技术研究 | E21: 28.78 | G21: 28.78
A22: 20604 | D22: 技术研究与开发 | E22: 1,034.25 | G22: 1,034.25
A23: 2060402 | D23: 应用技术研究与开发 | E23: 1,000.00 | G23: 1,000.00
A24: 2060403 | D24: 产业技术研究与开发 | E24: 34.25 | G24: 34.25
A25: 20605 | D25: 科技条件与服务 | E25: 90.15 | G25: 90.15
A26: 2060502 | D26: 技术创新服务体系 | E26: 90.15 | G26: 90.15
A27: 20607 | D27: 科学技术普及 | E27: 18.06 | G27: 18.06
A28: 2060703 | D28: 青少年科技活动 | E28: 18.06 | G28: 18.06
A29: 207 | D29: 文化体育与传媒支出 | E29: 20.00 | G29: 20.00
A30: 20701 | D30: 文化 | E30: 20.00 | G30: 20.00
A31: 2070199 | D31: 其他文化支出 | E31: 20.00 | G31: 20.00
A32: 211 | D32: 节能环保支出 | E32: 10.51 | G32: 10.51
A33: 21110 | D33: 能源节约利用 | E33: 10.51 | G33: 10.51
A34: 2111001 | D34: 能源节约利用 | E34: 10.51 | G34: 10.51
A35: 221 | D35: 住房保障支出 | E35: 808.27 | F35: 808.27
A36: 22102 | D36: 住房改革支出 | E36: 808.27 | F36: 808.27
A37: 2210201 | D37: 住房公积金 | E37: 808.27 | F37: 808.27
A38: 本表不含年初财政拨款结余结转的2016年支出数

Sheet （预表3-1）一般公共预算基本支出表
F1: 预算表3-1
A2: 2016年一般公共预算基本支出表
A3: 单位名称：东莞理工学院 | F3: 单位：万元
A4: 项目 | D4: 年初预算数
A5: 经济分类科目编码 | C5: 科目名称
A8: 类 | B8: 款 | C8: 栏次 | D8: 合计 | E8: 人员经费 | F8: 公用经费
D9: 合计
A10: 合计 | D10: 25,587.29 | E10: 25,587.29 | F10: 0
A11: 301 | C11: 工资福利支出 | D11: =SUM(D12:D17) -> 23,241.74 | E11: =SUM(E12:E17) -> 23,241.74
A12: 30101 | C12: 基本工资 | D12: 2,301.41 | E12: 2,301.41
A13: 30102 | C13: 津贴补贴 | D13: 4,146.24 | E13: 4,146.24
A14: 30103 | C14: 奖金 | D14: 839.12 | E14: 839.12
A15: 30104 | C15: 社会保障缴费 | D15: 2,813.52 | E15: 2,813.52
A16: 30105 | C16: 绩效工资 | D16: 1,141.45 | E16: 1,141.45
A17: 30199 | C17: 其他工资福利支出 | D17: 12,000.00 | E17: 12,000.00
A18: 303 | C18: 对个人和家庭的补助 | D18: =SUM(D19:D24) -> 2,345.55 | E18: =SUM(E19:E24) -> 2,345.55
A19: 30302 | C19: 退休费 | D19: 273.28 | E19: 273.28
A20: 30305 | C20: 生活补助 | D20: 931.67 | E20: 931.67
A21: 30309 | C21: 奖励金 | D21: 53.76 | E21: 53.76
A22: 30311 | C22: 住房公积金 | D22: 808.27 | E22: 808.27
A23: 30313 | C23: 购房补贴 | D23: 154.25 | E23: 154.25
A24: 30399 | C24: 其他对个人和家庭的补助支出 | D24: 124.32 | E24: 124.32
A36: 本表不含年初财政拨款结余结转的2016年支出数

Sheet （预表3-2）一般公共预算项目支出表
D1: 预算表3-2
A2: 2016年一般公共预算项目支出表
A3: 单位名称：东莞理工学院 | D3: 单位：万元
A4: 项目 | D4: 年初预算数
A5: 经济分类科目编码 | C5: 科目名称
A8: 类 | B8: 款 | C8: 栏次
A9: 合计 | D9: 49,540.97
A10: 302 | C10: 商品和服务支出 | D10: 19,465.00
A11: 30201 | C11: 办公费 | D11: 522.00
A12: 30202 | C12: 印刷费 | D12: 388.00
A13: 30203 | C13: 咨询费 | D13: 72.00
A14: 30204 | C14: 手续费 | D14: 3.00
A15: 30205 | C15: 水费 | D15: 880.00
A16: 30206 | C16: 电费 | D16: 2,350.00
A17: 30207 | C17: 邮电费 | D17: 152.00
A18: 30209 | C18: 物业管理费 | D18: 1,563.00
A19: 30211 | C19: 差旅费 | D19: 1,380.00
A20: 30212 | C20: 因公出国（境）费用 | D20: 135.00
A21: 30213 | C21: 维修(护)费 | D21: 1,450.00
A22: 30214 | C22: 租赁费 | D22: 1,148.00
A23: 30215 | C23: 会议费 | D23: 236.00
A24: 30216 | C24: 培训费 | D24: 210.00
A25: 30217 | C25: 公务接待费 | D25: 89.00
A26: 30218 | C26: 专用材料费 | D26: 1,861.00
A27: 30225 | C27: 专用燃料费 | D27: 62.00
A28: 30226 | C28: 劳务费 | D28: 2,900.00
A29: 30227 | C29: 委托业务费 | D29: 122.00
A30: 30228 | C30: 工会经费 | D30: 250.00
A31: 30229 | C31: 福利费 | D31: 490.00
A32: 30231 | C32: 公务用车运行维护费 | D32: 67.00
A33: 30239 | C33: 其他交通费用 | D33: 330.00
A34: 30299 | C34: 其他商品和服务支出 | D34: 2,805.00
A35: 303 | C35: 对个人和家庭的补助 | D35: 6,067.30
A36: 30308 | C36: 助学金 | D36: 704.00
A37: 30309 | C37: 奖励金 | D37: 1,363.30
A38: 30313 | C38: 购房补贴 | D38: 4,000.00
A39: 310 | C39: 其他资本性支出 | D39: 24,008.67
A40: 31002 | C40: 办公设备购置 | D40: 369.27
A41: 31003 | C41: 专用设备购置 | D41: 19,272.00
A42: 31099 | C42: 其他资本性支出 | D42: 4,367.40
A43: 本表不含年初财政拨款结余结转的2016年支出数

Sheet （预表4）一般公共预算“三公”经费支出表
F1: 预算表4
A2: 一般公共预算“三公”经费支出表
A3: 单位名称：东莞理工学院 | F3: 单位：万元
B4: 小计 | C4: 因公出国（境）费用 | D4: 公车购置费 | E4: 公车运行维护费 | F4: 公务接待费
A5: 2015年预算数 | B5: 217.00 | C5: 50.00 | E5: 70.00 | F5: 97.00
A6: 2016年预算数 | B6: 291.00 | C6: 135.00 | E6: 67.00 | F6: 89.00
A7: 变化情况 | B7: =B6-B5 -> 74.00 | C7: =C6-C5 -> 85.00 | E7: -3.00 | F7: -8.00
A8: 备注：1、变化情况=2016年预算数-2015年预算数
A9: 2、因公出国费用：1、正常教学经费中因公出国费用仍保持2015年50万元预算；2、根据超常规建设高水平理工科大学的需要从省市共建高水平理工科大学专项补助资金中安排67万元、科研项目经费中安排18万元。

Sheet （预表5）政府性基金预算支出表
G1: 预算表5
A2: 2016年政府性基金预算支出表
A3: 单位名称：东莞理工学院 | G3: 单位：万元
A4: 科目编码 | D4: 科目名称 | E4: 年初预算数
A5: 类 | B5: 款 | C5: 项 | E5: 合计 | F5: 基本支出 | G5: 项目支出
D6: 栏次 | E6: 3 | F6: 4 | G6: 5
D7: 合计
A9: 注： | B9: 本部门没有政府性基金预算拨款收入，也没有使用政府性基金安排的支出，故本表无数据。
A10: 本表不含年初财政拨款结余结转的2016年支出数

Sheet （预表6）部门收支总表
F1: 预算表6
A2: 2016年部门收支总表
A3: 单位名称：东莞理工学院 | F3: 单位：万元
A4: 收入 | D4: 支出
A5: 项目 | B5: 行次 | C5: 年初预算数 | D5: 项目(按功能分类) | E5: 行次 | F5: 年初预算数
A6: 栏次 | C6: 1 | D6: 栏次 | F6: 2
A7: 一、财政拨款收入 | B7: 1 | C7: =SUM(C8:C9) -> 75,128.26 | D7: 一、一般公共服务支出 | E7: 37 | F7: 10.00
A8: （一）一般公共预算拨款收入 | B8: 2 | C8: 75,128.26 | D8: 二、外交支出 | E8: 38
A9: （二）政府性基金预算拨款收入 | B9: 3 | D9: 三、国防支出 | E9: 39
A10: 二、上级补助收入 | B10: 4 | D10: 四、公共安全支出 | E10: 40
A11: 三、事业收入 | B11: 5 | C11: 12,935.16 | D11: 五、教育支出 | E11: 41 | F11: 115,662.06
A12: 四、经营收入 | B12: 6 | D12: 六、科学技术支出 | E12: 42 | F12: 1,930.65
A13: 五、附属单位上缴收入 | B13: 7 | D13: 七、文化体育与传媒支出 | E13: 43 | F13: 20.00
A14: 六、其他收入 | B14: 8 | C14: 200.00 | D14: 八、社会保障和就业支出 | E14: 44
B15: 9 | D15: 九、医疗卫生与计划生育支出 | E15: 45
B16: 10 | D16: 十、节能环保支出 | E16: 46 | F16: 10.51
B17: 11 | D17: 十一、城乡社区支出 | E17: 47
B18: 12 | D18: 十二、农林水支出 | E18: 48
B19: 13 | D19: 十三、交通运输支出 | E19: 49
B20: 14 | D20: 十四、资源勘探信息等支出 | E20: 50
B21: 15 | D21: 十五、商业服务业等支出 | E21: 51
B22: 16 | D22: 十六、金融支出 | E22: 52
B23: 17 | D23: 十七、援助其他地区支出 | E23: 53
B24: 18 | D24: 十八、国土海洋气象等支出 | E24: 54
B25: 19 | D25: 十九、住房保障支出 | E25: 55 | F25: 808.27
B26: 20 | D26: 二十、粮油物资储备支出 | E26: 56
B27: 21 | D27: 二十一、国债还本付息支出 | E27: 57
B28: 22 | D28: 二十二、其他支出 | E28: 58
B29: 23 | E29: 59
A30: 本年收入合计 | B30: 24 | C30: =SUM(C8:C14) -> 88,263.42 | D30: 本年支出合计 | E30: 60 | F30: =SUM(F7:F28) -> 118,441.49
A31: 用事业基金弥补收支差额 | B31: 25 | D31: 结转下年 | E31: 61
A32: 年初结转和结余 | B32: 26 | C32: 30,178.07 | E32: 62
A33: 基本支出结转 | B33: 27 | E33: 63
A34: 项目支出结转和结余 | B34: 28 | C34: 30,178.07 | E34: 64
A35: 经营结余 | B35: 29 | E35: 65
B36: 30 | E36: 66
B37: 31 | E37: 67
B38: 32 | E38: 68
B39: 33 | E39: 69
B40: 34 | E40: 70
B41: 35 | E41: 71
A42: 收入总计 | B42: 36 | C42: =C30+C31+C32 -> 118,441.49 | D42: 支出总计 | E42: 72 | F42: =SUM(F30:F31) -> 118,441.49

Sheet （预表7）部门收入总表
N1: 预算表7
A2: 2016年部门收入总表
A3: 单位名称：东莞理工学院 | N3: 单位：万元
A4: 项目 | E4: 合计 | F4: 一般公共预算拨款收入 | G4: 政府性基金预算拨款收入 | H4: 上级补助收入 | I4: 事业收入 | J4: 经营收入 | K4: 附属单位上缴收入 | L4: 其他收入 | M4: 用事业基金弥补收支差额 | N4: 年初结转和结余
A5: 支出功能分类科目编码 | D5: 科目名称
A8: 类 | B8: 款 | C8: 项 | D8: 栏次 | E8: 1 | F8: 2 | G8: 3 | H8: 4 | I8: 5 | J8: 6 | K8: 7 | L8: 8 | M8: 9 | N8: 10
D9: 合计 | E9: =E10+E13+E16+E32+E35+E38 -> 118,441.49 | F9: =F10+F13+F16+F32+F35+F38 -> 75,128.26 | I9: 12,935.16 | L9: 200.00 | N9: 30,178.07
A10: 201 | D10: 一般公共服务支出 | E10: =SUM(F10:N10) -> 10.00 | F10: 10.00
A11: 20114 | D11: 知识产权事务 | E11: =SUM(F11:N11) -> 10.00 | F11: 10.00
A12: 2011409 | D12: 知识产权宏观管理 | E12: 10.00 | F12: 10.00
A13: 205 | D13: 教育支出 | E13: 115,662.06 | F13: 72,453.36 | I13: 12,935.16 | L13: 200.00 | N13: 30,073.54
A14: 20502 | D14: 普通教育 | E14: 115,662.06 | F14: 72,453.36 | I14: 12,935.16 | L14: 200.00 | N14: 30,073.54
A15: 2050205 | D15: 高等教育 | E15: 115,662.06 | F15: 72,453.36 | I15: 12,935.16 | L15: 200.00 | N15: 30,073.54
A16: 206 | D16: 科学技术支出 | E16: 1,930.65 | F16: 1,826.12 | N16: 104.53
A17: 20602 | D17: 基础研究 | E17: 325.83 | F17: 325.83
A18: 2060203 | D18: 自然科学基金 | E18: 325.83 | F18: 325.83
A19: 20603 | D19: 应用研究 | E19: 357.82 | F19: 357.82
A20: 2060302 | D20: 社会公益研究 | E20: 329.04 | F20: 329.04
A21: 2060303 | D21: 高技术研究 | E21: 28.78 | F21: 28.78
A22: 20604 | D22: 技术研究与开发 | E22: 1,138.78 | F22: 1,034.25 | N22: 104.53
A23: 2060402 | D23: 应用技术研究与开发 | E23: 1,000.00 | F23: 1,000.00
A24: 2060403 | D24: 产业技术研究与开发 | E24: 34.25 | F24: 34.25
A25: 2060499 | D25: 其他技术研究与开发支出 | E25: 33.99 | N25: 33.99
A26: 2060901 | D26: 科技重大专项 | E26: 49.34 | N26: 49.34
A27: 2069999 | D27: 其他科学技术支出 | E27: 21.20 | N27: 21.20
A28: 20605 | D28: 科技条件与服务 | E28: 90.15 | F28: 90.15
A29: 2060502 | D29: 技术创新服务体系 | E29: 90.15 | F29: 90.15
A30: 20607 | D30: 科学技术普及 | E30: 18.06 | F30: 18.06
A31: 2060703 | D31: 青少年科技活动 | E31: 18.06 | F31: 18.06
A32: 207 | D32: 文化体育与传媒支出 | E32: 20.00 | F32: 20.00
A33: 20701 | D33: 文化 | E33: 20.00 | F33: 20.00
A34: 2070199 | D34: 其他文化支出 | E34: 20.00 | F34: 20.00
A35: 211 | D35: 节能环保支出 | E35: 10.51 | F35: 10.51
A36: 21110 | D36: 能源节约利用 | E36: 10.51 | F36: 10.51
A37: 2111001 | D37: 能源节约利用 | E37: 10.51 | F37: 10.51
A38: 221 | D38: 住房保障支出 | E38: 808.27 | F38: 808.27
A39: 22102 | D39: 住房改革支出 | E39: 808.27 | F39: 808.27
A40: 2210201 | D40: 住房公积金 | E40: 808.27 | F40: 808.27

Sheet （预表8）部门支出总表
J1: 预算表8
A2: 2016年部门支出总表
A3: 单位名称：东莞理工学院 | J3: 单位：万元
A4: 项目 | E4: 本年支出合计 | F4: 基本支出 | G4: 项目支出 | H4: 上缴上级支出 | I4: 经营支出 | J4: 对附属单位补助支出
A5: 支出功能分类科目编码 | D5: 科目名称
A8: 类 | B8: 款 | C8: 项 | D8: 栏次 | E8: 1 | F8: 2 | G8: 3 | H8: 4 | I8: 5 | J8: 6
D9: 合计 | E9: =E10+E13+E16+E32+E35+E38 -> 118,441.49 | F9: =F10+F13+F16+F32+F35+F38 -> 25,587.29 | G9: 92,854.20 | H9: 0.00 | I9: 0.00 | J9: 0.00
A10: 201 | D10: 一般公共服务支出 | E10: 10.00 | G10: 10.00
A11: 20114 | D11: 知识产权事务 | E11: 10.00 | G11: 10.00
A12: 2011409 | D12: 知识产权宏观管理 | E12: 10.00 | G12: 10.00
A13: 205 | D13: 教育支出 | E13: 115,662.06 | F13: 24,779.02 | G13: 90,883.04
A14: 20502 | D14: 普通教育 | E14: 115,662.06 | F14: 24,779.02 | G14: 90,883.04
A15: 2050205 | D15: 高等教育 | E15: 115,662.06 | F15: 24,779.02 | G15: 90,883.04
A16: 206 | D16: 科学技术支出 | E16: 1,930.65 | G16: 1,930.65
A17: 20602 | D17: 基础研究 | E17: 325.83 | G17: 325.83
A18: 2060203 | D18: 自然科学基金 | E18: 325.83 | G18: 325.83
A19: 20603 | D19: 应用研究 | E19: 357.82 | G19: 357.82
A20: 2060302 | D20: 社会公益研究 | E20: 329.04 | G20: 329.04
A21: 2060303 | D21: 高技术研究 | E21: 28.78 | G21: 28.78
A22: 20604 | D22: 技术研究与开发 | E22: 1,138.78 | G22: 1,138.78
A23: 2060402 | D23: 应用技术研究与开发 | E23: 1,000.00 | G23: 1,000.00
A24: 2060403 | D24: 产业技术研究与开发 | E24: 34.25 | G24: 34.25
A25: 2060499 | D25: 其他技术研究与开发支出 | E25: 33.99 | G25: 33.99
A26: 2060901 | D26: 科技重大专项 | E26: 49.34 | G26: 49.34
A27: 2069999 | D27: 其他科学技术支出 | E27: 21.20 | G27: 21.20
A28: 20605 | D28: 科技条件与服务 | E28: 90.15 | G28: 90.15
A29: 2060502 | D29: 技术创新服务体系 | E29: 90.15 | G29: 90.15
A30: 20607 | D30: 科学技术普及 | E30: 18.06 | G30: 18.06
A31: 2060703 | D31: 青少年科技活动 | E31: 18.06 | G31: 18.06
A32: 207 | D32: 文化体育与传媒支出 | E32: 20.00 | G32: 20.00
A33: 20701 | D33: 文化 | E33: 20.00 | G33: 20.00
A34: 2070199 | D34: 其他文化支出 | E34: 20.00 | G34: 20.00
A35: 211 | D35: 节能环保支出 | E35: 10.51 | G35: 10.51
A36: 21110 | D36: 能源节约利用 | E36: 10.51 | G36: 10.51
A37: 2111001 | D37: 能源节约利用 | E37: 10.51 | G37: 10.51
A38: 221 | D38: 住房保障支出 | E38: 808.27 | F38: 808.27
A39: 22102 | D39: 住房改革支出 | E39: 808.27 | F39: 808.27
A40: 2210201 | D40: 住房公积金 | E40: 808.27 | F40: 808.27

Sheet （预表9）政府采购预算表
F1: 预算表9
A2: 2016年政府采购预算表
A3: 单位名称：东莞理工学院 | F3: 单位：万元
A4: 项目 | B4: 行次 | C4: 采购预算
C5: 总计 | D5: 一般公共预算 | E5: 政府性基金预算 | F5: 其他资金
A6: 栏次 | C6: 1 | D6: 2 | E6: 3 | F6: 4
A7: 合 计 | B7: 1 | C7: =SUM(C8:C10) -> 7,845.43 | D7: =SUM(D8:D10) -> 7,845.43
A8: 货物 | B8: 2 | C8: 6,621.63 | D8: 6,621.63
A9: 工程 | B9: 3 | C9: 541.00 | D9: 541.00
A10: 服务 | B10: 4 | C10: 682.80 | D10: 682.80
